bitfinex/quotes_BTCUSD_20260126
["timestamp","ask_amount","ask_price","bid_price","bid_amount"]
[1769440878259,0.03,88671.0,88646.0,0.01128082]
[1769440878468,0.03,88669.0,88645.0,0.01128095]
[1769440878649,0.03,88669.0,88644.0,0.01128107]
[1769440878849,0.03,88669.0,88645.0,0.01128095]
[1769440879226,0.03,88669.0,88643.0,0.0112812]
[1769440879438,0.03,88669.0,88644.0,0.01128107]
[1769440879646,0.03,88667.0,88642.0,0.03417946]
[1769440879859,0.03,88667.0,88644.0,0.01128107]
[1769440880066,0.03,88667.0,88643.0,0.0112812]
[1769440880288,0.03,88667.0,88642.0,0.02289813]
[1769440880763,0.02598373,88668.0,88643.0,0.0112812]
[1769440880957,0.3472222,88764.0,88643.0,0.0112812]
[1769440880958,0.03,88697.0,88665.0,0.6783005]
[1769440881179,0.03,88691.0,88670.0,0.54593788]
[1769440881390,0.03,88691.0,88675.0,0.01127713]
[1769440881560,0.03,88689.0,88676.0,0.011277]
[1769440881790,0.03,88689.0,88673.0,0.01127738]
[1769440881974,0.03,88689.0,88667.0,0.02289813]
[1769440882327,0.03,88689.0,88668.0,0.06766769]
[1769440882704,0.03,88689.0,88667.0,0.02289813]
[1769440882906,0.03,88686.0,88668.0,0.01127802]
[1769440883116,0.03,88686.0,88667.0,0.02289813]
[1769440883117,0.03,88686.0,88674.0,0.01127726]
[1769440883305,0.03,88686.0,88673.0,0.01127738]
[1769440883530,0.03,88686.0,88672.0,0.02289813]
[1769440883708,0.03,88686.0,88672.0,0.07861976]
[1769440883904,0.03,88685.0,88672.0,0.08989727]
[1769440884137,0.03,88685.0,88676.0,0.011277]
[1769440884302,0.03,88685.0,88674.0,0.01127726]
[1769440884497,0.03,88685.0,88660.0,0.51176198]
[1769440884712,0.03,88685.0,88672.0,0.001]
[1769440884904,0.03,88684.0,88672.0,0.001]
[1769440885090,0.03,88684.0,88663.0,0.6783005]
[1769440885290,0.03,88684.0,88664.0,0.01127853]
[1769440885489,0.65223711,88694.0,88670.0,0.01127777]
[1769440885704,0.04516,88701.0,88680.0,0.01127649]
[1769440885916,0.04516,88701.0,88677.0,0.51176198]
[1769440885917,0.03,88704.0,88684.0,0.01127599]
[1769440886112,0.03,88699.0,88684.0,0.01127599]
[1769440886315,0.03,88699.0,88689.0,0.51176198]
[1769440886515,0.67703166,88715.0,88691.0,0.0112751]
[1769440886689,0.17336,88714.0,88691.0,0.06764998]
[1769440887040,0.83976469,88740.0,88689.0,0.57646866]
[1769440887041,0.04516,88722.0,88700.0,0.51176198]
[1769440887273,0.03,88716.0,88700.0,0.51176198]
[1769440887456,0.03,88716.0,88701.0,0.01127383]
[1769440887667,0.03,88716.0,88690.0,0.51176198]
[1769440887801,0.03,88700.0,88693.0,0.01127484]
[1769440887996,0.03,88700.0,88690.0,0.63869967]
[1769440888198,0.03,88700.0,88687.0,0.17336]
[1769440888428,0.65223711,88712.0,88683.0,0.01127611]
[1769440888671,0.65223711,88712.0,88680.0,0.01127649]
[1769440888672,0.67703166,88710.0,88687.0,0.0112756]
[1769440888872,0.03,88709.0,88687.0,0.0112756]
[1769440889094,0.03,88709.0,88687.0,0.12287838]
[1769440889302,0.03,88709.0,88690.0,0.067651]
[1769440889504,0.03,88709.0,88692.0,0.01127497]
[1769440889652,0.03,88709.0,88693.0,0.01127484]
[1769440889835,0.03,88709.0,88688.0,0.01127548]
[1769440890039,0.03,88709.0,88691.0,0.0112751]
[1769440890243,0.65223711,88718.0,88690.0,0.51176198]
[1769440890244,0.03,88708.0,88690.0,0.51176198]
[1769440890444,0.03,88708.0,88690.0,0.5230372]
[1769440890746,0.03,88708.0,88680.0,0.52303847]
[1769440890972,0.02479455,88711.0,88690.0,0.01127522]
[1769440891170,0.04556,88717.0,88691.0,0.6783005]
[1769440891171,0.03,88713.0,88691.0,0.6783005]
[1769440891369,0.03,88713.0,88689.0,0.02289813]
[1769440891370,0.001,88712.0,88692.0,0.01127497]
[1769440891567,0.001,88712.0,88695.0,0.01127459]
[1769440891828,0.03,88713.0,88700.0,0.01127395]
[1769440892043,0.03,88713.0,88703.0,0.01127357]
[1769440892212,0.001,88711.0,88698.0,0.01127421]
[1769440892416,0.001,88711.0,88700.0,0.06764367]
[1769440892620,0.001,88711.0,88699.0,0.01127408]
[1769440892822,0.001,88711.0,88691.0,0.0563755]
[1769440893035,0.03,88709.0,88693.0,0.01127484]
[1769440893268,0.03,88709.0,88694.0,0.01127471]
[1769440893470,0.03,88709.0,88696.0,0.01127446]
[1769440893674,0.03,88709.0,88694.0,0.01127471]
[1769440893881,0.03,88709.0,88690.0,0.51176198]
[1769440894074,0.03,88708.0,88700.0,0.01127395]
[1769440894412,0.03,88708.0,88693.0,0.01127484]
[1769440894633,0.03,88708.0,88690.0,0.51176198]
[1769440894634,0.03,88708.0,88692.0,0.01127497]
[1769440894837,0.03,88708.0,88694.0,0.01127471]
[1769440895044,0.03,88707.0,88694.0,0.001]
[1769440895254,0.03,88707.0,88694.0,0.01227471]
[1769440895407,0.03,88707.0,88692.0,0.01127497]
[1769440895607,0.03,88707.0,88663.0,0.45114466]
[1769440895608,0.050332,88707.0,88685.0,0.01127586]
[1769440895813,0.03,88707.0,88692.0,0.001]
[1769440896120,0.03,88706.0,88692.0,0.001]
[1769440896318,0.17332,88714.0,88692.0,0.001]
[1769440896573,0.17332,88714.0,88693.0,0.01127484]
[1769440896738,0.17332,88714.0,88698.0,0.01127421]
[1769440896920,0.17332,88714.0,88700.0,0.51176198]
[1769440897134,0.03,88713.0,88700.0,0.47880974]
[1769440897532,0.03,88713.0,88692.0,0.6793005]
[1769440897752,0.17332,88714.0,88692.0,0.6793005]
[1769440897753,0.03,88711.0,88692.0,0.6793005]
[1769440897946,0.03,88711.0,88698.0,0.01127421]
[1769440898160,0.03,88711.0,88695.0,0.01127459]
[1769440898376,0.03,88711.0,88698.0,0.22548422]
[1769440898578,0.03,88711.0,88698.0,0.01127421]
[1769440898806,0.03,88710.0,88700.0,0.51276198]
[1769440899147,0.03,88710.0,88700.0,0.001]
[1769440899657,0.03,88710.0,88690.0,0.68508198]
[1769440899658,0.001,88700.0,88690.0,0.17332]
[1769440899867,0.01127408,88699.0,88680.0,0.53466011]
[1769440900099,0.03,88689.0,88665.0,0.6783005]
[1769440900306,0.03,88684.0,88664.0,0.17328]
[1769440900929,0.03,88684.0,88667.0,0.01127815]
[1769440901133,0.03,88684.0,88664.0,0.17328]
[1769440901134,0.03,88684.0,88674.0,0.01127726]
[1769440901347,0.03,88696.0,88674.0,0.06766344]
[1769440901547,0.0002055,88688.0,88680.0,0.52303847]
[1769440901756,0.03,88696.0,88680.0,0.52303847]
[1769440901757,0.03,88696.0,88681.0,0.01127637]
[1769440901954,0.03,88696.0,88681.0,0.70119863]
[1769440902156,0.03,88696.0,88681.0,0.02289813]
[1769440902362,0.03,88707.0,88681.0,0.0905561]
[1769440902555,0.03,88707.0,88681.0,0.02289813]
[1769440902798,0.03,88707.0,88681.0,0.09055597]
[1769440903016,0.03,88707.0,88681.0,0.02289813]
[1769440903691,0.03,88707.0,88681.0,0.02259494]
[1769440903692,0.68223711,88707.0,88681.0,0.02259494]
[1769440903906,0.68223711,88707.0,88681.0,0.03387131]
[1769440904125,0.03,88707.0,88690.0,0.51176198]
[1769440904554,0.03,88707.0,88686.0,0.01127573]
[1769440904795,0.03,88707.0,88690.0,0.51176198]
[1769440905014,0.03,88707.0,88682.0,0.75131948]
[1769440905949,0.03,88704.0,88680.0,0.51176198]
[1769440906279,0.68223711,88704.0,88680.0,0.51176198]
[1769440906498,0.03,88704.0,88690.0,0.51176198]
[1769440906772,0.83976469,88740.0,88694.0,0.01127471]
[1769440906773,0.02529195,88718.0,88694.0,0.01127471]
[1769440906978,0.02529195,88718.0,88698.0,0.51176198]
[1769440906979,0.0304974,88718.0,88698.0,0.51176198]
[1769440907191,0.0304974,88718.0,88694.0,0.6783005]
[1769440907304,0.0304974,88718.0,88695.0,0.01127459]
[1769440907519,0.0304974,88718.0,88694.0,0.68957521]
[1769440907764,0.03,88716.0,88695.0,0.01127459]
[1769440907978,0.03,88716.0,88696.0,0.05637184]
[1769440908274,0.03,88716.0,88697.0,0.01127433]
[1769440908475,0.03,88716.0,88695.0,0.06764727]
[1769440908697,0.03,88716.0,88697.0,0.01127433]
[1769440908866,0.09280403,88717.0,88696.0,0.03532092]
[1769440908867,0.03,88715.0,88696.0,0.03532092]
[1769440909424,0.03,88715.0,88696.0,0.02404646]
[1769440909856,0.0004,88717.0,88696.0,0.02404646]
[1769440910057,0.03,88716.0,88696.0,0.02404646]
[1769440910904,0.03,88716.0,88697.0,0.02404646]
[1769440911105,0.0004,88717.0,88697.0,0.02404646]
[1769440911987,0.0004,88717.0,88690.0,0.5794131]
[1769440911988,0.03,88715.0,88690.0,0.51176198]
[1769440912398,0.70392936,88715.0,88690.0,0.51176198]
[1769440912756,0.70392936,88715.0,88685.0,0.01127586]
[1769440912757,0.69265731,88701.0,88683.0,0.17328]
[1769440913170,0.03,88699.0,88683.0,0.17328]
[1769440913326,0.18455357,88703.0,88641.0,0.26973514]
[1769440913327,0.04127548,88688.0,88641.0,0.26973514]
[1769440913533,0.03,88678.0,88655.0,0.08518051]
[1769440913756,0.03,88678.0,88655.0,0.02404646]
[1769440913933,0.68393342,88683.0,88655.0,0.02404646]
[1769440913934,0.03,88676.0,88660.0,0.53580844]
[1769440914138,0.03,88676.0,88663.0,0.01127866]
[1769440914354,0.01127383,88701.0,88668.0,0.03532448]
[1769440914355,0.53401818,88696.0,88668.0,0.03532448]
[1769440914587,0.2184,88695.0,88669.0,0.02404646]
[1769440914811,0.2184,88695.0,88670.0,0.51176198]
[1769440914812,0.03,88694.0,88670.0,0.51176198]
[1769440915362,0.03,88690.0,88669.0,0.02404646]
[1769440915568,0.03,88690.0,88666.0,0.01127828]
[1769440915772,0.03,88690.0,88665.0,0.0112784]
[1769440915773,0.03,88688.0,88665.0,0.0112784]
[1769440916016,0.01127573,88686.0,88660.0,0.001]
[1769440916215,0.01127573,88686.0,88650.0,0.57474762]
[1769440916216,0.03,88681.0,88657.0,0.01127942]
[1769440916418,0.53401818,88682.0,88657.0,0.01127942]
[1769440916419,0.03,88679.0,88657.0,0.01127942]
[1769440916551,0.03,88679.0,88654.0,0.24095875]
[1769440916753,0.03,88679.0,88656.0,0.01127955]
[1769440916954,0.03,88679.0,88660.0,0.52304102]
[1769440917167,0.03,88679.0,88660.0,0.51176198]
[1769440917363,0.03,88677.0,88660.0,0.52404102]
[1769440917971,0.03,88677.0,88662.0,0.01127878]
[1769440918188,0.03,88677.0,88660.0,0.51276198]
[1769440918389,0.03,88677.0,88660.0,0.51176198]
[1769440919236,0.03,88677.0,88660.0,0.51276198]
[1769440919461,0.03,88675.0,88660.0,0.51276198]
[1769440919577,0.03,88675.0,88660.0,0.52259626]
[1769440919803,0.03,88675.0,88660.0,0.51231722]
[1769440919980,0.03,88675.0,88662.0,0.01127878]
[1769440920201,0.02303843,88701.0,88674.0,0.69661241]
[1769440920411,0.03,88687.0,88678.0,0.51130725]
[1769440920634,0.03,88687.0,88675.0,0.02404646]
[1769440920835,0.03,88687.0,88666.0,0.02404646]
[1769440921051,0.03,88687.0,88668.0,0.01127802]
[1769440921268,0.03,88685.0,88668.0,0.67256595]
[1769440921491,0.17328,88692.0,88653.0,0.05639947]
[1769440921492,0.02303843,88681.0,88653.0,0.05639947]
[1769440921721,0.03,88678.0,88670.0,0.51130725]
[1769440921943,0.57198131,88720.0,88673.0,0.01127738]
[1769440921944,0.17328,88692.0,88673.0,0.01127738]
[1769440922162,0.17328,88692.0,88662.0,0.22557502]
[1769440922163,0.30198787,88716.0,88681.0,0.67256595]
[1769440922403,0.8213582,88737.0,88694.0,0.01127471]
[1769440922404,0.04512,88714.0,88694.0,0.01127471]
[1769440922628,0.04512,88714.0,88692.0,0.01127497]
[1769440922844,0.03,88713.0,88693.0,0.11160278]
[1769440923061,0.01127294,88708.0,88690.0,0.17328]
[1769440923280,0.03,88713.0,88690.0,0.17328]
[1769440923281,0.71569574,88703.0,88690.0,0.17328]
[1769440923493,0.71569574,88703.0,88680.0,0.51130725]
[1769440923752,0.18459332,88705.0,88667.0,0.17328]
[1769440923753,0.03,88693.0,88667.0,0.17328]
[1769440923961,0.03,88693.0,88663.0,0.01127866]
[1769440923962,0.03,88679.0,88658.0,0.01127929]
[1769440924161,0.03,88679.0,88659.0,0.01127917]
[1769440924410,0.03,88679.0,88660.0,0.52258629]
[1769440924600,0.45088113,88716.0,88694.0,3.94932992]
[1769440924802,0.07941139,88695.0,88694.0,2.28744915]
[1769440925032,0.07941139,88695.0,88694.0,0.64958972]
[1769440925222,0.19218104,88695.0,88694.0,0.64958972]
[1769440925396,0.05303843,88695.0,88694.0,0.64958972]
[1769440925599,0.10941139,88695.0,88694.0,0.64958972]
[1769440925829,0.05303843,88695.0,88694.0,0.64958972]
[1769440926598,0.05403843,88695.0,88694.0,0.64958972]
[1769440927289,0.05403843,88695.0,88694.0,0.54958972]
[1769440927415,0.20428,88695.0,88694.0,0.54958972]
[1769440927626,0.20328,88695.0,88694.0,0.54958972]
[1769440928119,0.22731843,88695.0,88694.0,0.54958972]
[1769440928501,0.20328,88695.0,88694.0,0.54958972]
[1769440928756,0.2447,88707.0,88694.0,0.54958972]
[1769440929769,0.03,88706.0,88694.0,0.54958972]
[1769440930437,0.07710584,88706.0,88694.0,0.54958972]
[1769440930648,0.03,88706.0,88694.0,0.54958972]
[1769440931940,0.03,88706.0,88676.0,0.067662]
[1769440931941,0.03,88684.0,88658.0,0.74335512]
[1769440932145,0.01,88685.0,88653.0,0.04512]
[1769440932146,0.01127751,88672.0,88653.0,0.06916646]
[1769440932365,0.17332,88688.0,88635.0,0.06769276]
[1769440932366,0.03,88667.0,88635.0,0.67256595]
[1769440932574,0.03,88652.0,88636.0,0.17332]
[1769440932921,0.03,88652.0,88636.0,0.195164]
[1769440933122,0.03,88652.0,88636.0,0.17332]
[1769440933553,0.03,88651.0,88636.0,0.17332]
[1769440934466,0.02303843,88653.0,88632.0,0.04512]
[1769440934467,0.03,88652.0,88632.0,0.04512]
[1769440934667,0.001,88651.0,88632.0,0.04512]
[1769440935069,0.0112784,88665.0,88632.0,0.04512]
[1769440935295,0.05108054,88664.0,88633.0,0.02404646]
[1769440935452,0.001,88651.0,88632.0,0.04512]
[1769440936071,0.001,88651.0,88633.0,0.67256595]
[1769440936282,0.02170169,88672.0,88640.0,1.1838732]
[1769440936283,0.10616,88668.0,88640.0,1.1838732]
[1769440936477,0.10616,88668.0,88641.0,0.02404646]
[1769440936731,0.03,88665.0,88641.0,0.02404646]
[1769440936925,0.03,88657.0,88630.0,0.17332]
[1769440937340,0.02303843,88660.0,88630.0,0.17332]
[1769440937341,0.03,88653.0,88630.0,0.17332]
[1769440937558,0.03,88648.0,88621.0,0.04516]
[1769440937803,0.03,88645.0,88621.0,0.21848]
[1769440938003,0.03,88645.0,88621.0,0.229764]
[1769440938132,0.03,88645.0,88621.0,0.21848]
[1769440938550,0.05330974,88643.0,88621.0,0.04516]
[1769440938785,0.03,88643.0,88621.0,0.04516]
[1769440939037,0.03,88643.0,88622.0,0.01128387]
[1769440939214,0.01127815,88667.0,88630.0,0.51130725]
[1769440939471,0.51130725,88680.0,88630.0,0.51130725]
[1769440939472,0.03,88661.0,88631.0,0.02437003]
[1769440939679,0.02330974,88653.0,88631.0,0.01128273]
[1769440939875,0.06099004,88672.0,88634.0,0.05641176]
[1769440939876,0.02330974,88667.0,88634.0,0.05641176]
[1769440940076,0.02330974,88667.0,88621.0,0.0360606]
[1769440940077,0.17336,88677.0,88642.0,0.0564062]
[1769440940428,0.17336,88677.0,88632.0,0.04516]
[1769440940429,0.17336,88686.0,88652.0,0.01128006]
[1769440940592,0.17336,88686.0,88651.0,0.01128018]
[1769440940819,0.03,88684.0,88657.0,0.02437003]
[1769440941250,0.0064585,88683.0,88657.0,0.02437003]
[1769440941673,0.0364585,88683.0,88654.0,0.17336]
[1769440941885,0.03,88681.0,88654.0,0.17336]
[1769440942976,0.03,88680.0,88654.0,0.17336]
[1769440943172,0.01127662,88679.0,88654.0,0.17336]
[1769440943414,0.03,88671.0,88654.0,0.17336]
[1769440944217,0.03,88671.0,88639.0,0.03565174]
[1769440944218,0.03,88671.0,88642.0,0.17336]
[1769440944462,0.03,88670.0,88642.0,0.17336]
[1769440945479,0.03,88669.0,88642.0,0.17336]
[1769440945615,0.03,88669.0,88653.0,0.01127993]
[1769440945835,0.03,88669.0,88654.0,0.0112798]
[1769440946174,0.00590116,88678.0,88655.0,0.01127967]
[1769440946378,0.00590116,88678.0,88651.0,0.01128018]
[1769440946379,0.00590116,88678.0,88656.0,0.6365304]
[1769440946580,0.03,88676.0,88656.0,0.6365304]
[1769440947145,0.03,88676.0,88656.0,0.7042073]
[1769440947351,0.2447,88680.0,88664.0,0.6365304]
[1769440947576,0.03,88693.0,88672.0,0.64780791]
[1769440947780,0.03,88693.0,88673.0,0.6365304]
[1769440948137,0.02330974,88701.0,88673.0,0.6365304]
[1769440948368,0.08621577,88700.0,88673.0,0.6365304]
[1769440948575,0.03,88699.0,88673.0,0.6365304]
[1769440948789,0.0112756,88687.0,88650.0,0.64781071]
[1769440949007,0.0112756,88687.0,88654.0,0.17336]
[1769440949008,0.02330974,88680.0,88654.0,0.17336]
[1769440949209,0.03,88673.0,88654.0,0.17336]
[1769440949409,0.05330974,88673.0,88654.0,0.17336]
[1769440949626,0.03,88669.0,88654.0,0.17336]
[1769440949779,0.05330974,88667.0,88638.0,0.17336]
[1769440949982,0.03,88665.0,88638.0,0.17336]
[1769440950422,0.03,88665.0,88640.0,0.01128158]
[1769440950667,0.03,88665.0,88639.0,0.01128171]
[1769440950878,0.03,88665.0,88640.0,0.01128158]
[1769440951032,0.03,88664.0,88642.0,0.64781173]
[1769440951231,0.03,88664.0,88646.0,0.01128082]
[1769440951425,0.03,88664.0,88643.0,0.6478116]
[1769440951627,0.03,88664.0,88643.0,0.6365304]
[1769440952059,0.03,88663.0,88643.0,0.6365304]
[1769440952456,0.03,88663.0,88638.0,0.17336]
[1769440952734,0.03,88663.0,88638.0,0.8098904]
[1769440952930,0.05638776,88672.0,88638.0,0.8097344]
[1769440952931,0.03,88662.0,88638.0,0.8097344]
[1769440953144,0.03,88662.0,88638.0,0.90668658]
[1769440953541,0.03,88662.0,88638.0,0.173204]
[1769440953953,0.03,88661.0,88638.0,0.173204]
[1769440954554,0.03,88661.0,88638.0,0.18448584]
[1769440954775,0.03,88661.0,88644.0,0.067686]
[1769440954992,0.03,88660.0,88641.0,0.64781186]
[1769440955555,0.03,88660.0,88644.0,0.01128107]
[1769440955754,0.03,88660.0,88643.0,0.6365304]
[1769440955977,0.03,88660.0,88643.0,0.6478116]
[1769440956177,0.03,88659.0,88643.0,0.6365304]
[1769440956983,0.03,88659.0,88643.0,0.6478116]
[1769440957194,0.03,88658.0,88643.0,0.6365304]
[1769440957763,0.02330974,88665.0,88643.0,0.6365304]
[1769440957975,0.78516189,88960.0,88659.0,0.01127917]
[1769440957976,0.02330974,88690.0,88659.0,0.01127917]
[1769440958141,0.03,88687.0,88659.0,0.64780957]
[1769440958345,0.03,88685.0,88664.0,0.05639256]
[1769440958552,0.03,88685.0,88664.0,0.63627549]
[1769440959478,0.02330974,88695.0,88664.0,0.63627549]
[1769440959479,0.03,88684.0,88664.0,0.63627549]
[1769440960564,0.03,88683.0,88664.0,0.63627549]
[1769440961394,0.01127484,88693.0,88664.0,0.63627549]
[1769440961395,0.03,88682.0,88664.0,0.63627549]
[1769440962248,0.03,88682.0,88658.0,0.6365304]
[1769440962428,0.03,88680.0,88655.0,0.17336]
[1769440962635,0.03,88674.0,88655.0,0.17336]
[1769440962851,0.51130725,88690.0,88655.0,0.17336]
[1769440962852,0.03,88670.0,88655.0,0.17336]
[1769440963279,0.03,88670.0,88655.0,0.18463967]
[1769440963807,0.03,88670.0,88655.0,0.17336]
[1769440966179,0.63341261,88680.0,88653.0,0.04516]
[1769440966180,0.03,88663.0,88653.0,0.04516]
[1769440966380,0.03,88661.0,88653.0,0.04516]
[1769440966560,0.03,88659.0,88653.0,0.04516]
[1769440968955,0.00633412,88668.0,88653.0,0.04516]
[1769440969164,0.03,88666.0,88653.0,0.04516]
[1769440969372,0.00591224,88665.0,88653.0,0.04516]
[1769440969875,0.03,88666.0,88653.0,0.04516]
[1769440971066,0.03,88678.0,88658.0,0.51130725]
[1769440971292,0.02057373,88695.0,88669.0,0.66022957]
[1769440971502,0.0003195,88696.0,88678.0,0.05638328]
[1769440971710,0.0003195,88696.0,88688.0,0.01127548]
[1769440971934,0.0003105,88714.0,88699.0,0.01127408]
[1769440972154,0.0003105,88714.0,88700.0,0.02366031]
[1769440972155,0.03,88712.0,88700.0,0.02366031]
[1769440972586,0.03,88712.0,88702.0,0.0112737]
[1769440972797,0.03,88712.0,88700.0,0.02366031]
[1769440973004,0.03,88712.0,88701.0,0.09688763]
[1769440973235,0.0003105,88714.0,88699.0,0.02366031]
[1769440973236,0.03,88711.0,88699.0,0.02366031]
[1769440974368,0.03,88710.0,88699.0,0.02366031]
[1769440974585,0.03,88710.0,88694.0,0.17336]
[1769440975509,0.03,88709.0,88694.0,0.17336]
[1769440976361,0.0003105,88714.0,88694.0,0.17336]
[1769440976777,0.00821815,88713.0,88694.0,0.17336]
[1769440976994,0.03,88712.0,88694.0,0.17336]
[1769440977629,0.03,88712.0,88680.0,0.02366031]
[1769440977630,0.01,88694.0,88680.0,0.02366031]
[1769440977840,0.03,88693.0,88680.0,0.02366031]
[1769440978044,0.03,88693.0,88683.0,0.02366031]
[1769440978700,0.01127243,88712.0,88666.0,0.01127828]
[1769440978701,0.03,88692.0,88666.0,0.01127828]
[1769440978921,0.03,88692.0,88660.0,0.04512]
[1769440978922,0.03,88690.0,88660.0,0.04512]
[1769440979172,0.03,88672.0,88661.0,0.02366031]
[1769440979378,0.03,88672.0,88653.0,0.06767912]
[1769440979379,0.03,88672.0,88650.0,0.02366031]
[1769440979595,0.03,88666.0,88649.0,0.0003105]
[1769440980024,0.00637569,88665.0,88649.0,0.0003105]
[1769440980245,0.03,88666.0,88649.0,0.0003105]
[1769440980520,0.03,88666.0,88653.0,0.01127993]
[1769440980717,0.00637569,88682.0,88653.0,0.02366031]
[1769440980718,0.03,88665.0,88653.0,0.02366031]
[1769440981205,0.17332,88679.0,88656.0,0.01127955]
[1769440981206,0.04512,88677.0,88656.0,0.01127955]
[1769440981635,0.04512,88677.0,88652.0,0.01128006]
[1769440981636,0.04512,88687.0,88663.0,0.03493897]
[1769440981859,0.04512,88687.0,88661.0,0.02366031]
[1769440981860,0.03,88686.0,88661.0,0.02366031]
[1769440982079,0.04512,88687.0,88661.0,0.03493922]
[1769440982080,0.03,88684.0,88661.0,0.03493922]
[1769440982295,0.03,88684.0,88662.0,0.01127878]
[1769440982502,0.03,88684.0,88661.0,0.02366031]
[1769440982710,0.03,88684.0,88661.0,0.03493922]
[1769440982925,0.03,88684.0,88661.0,0.02366031]
[1769440983138,0.03,88682.0,88661.0,0.02366031]
[1769440984776,0.031,88682.0,88661.0,0.02366031]
[1769440984938,0.03,88681.0,88662.0,0.01127878]
[1769440985103,0.03,88681.0,88662.0,0.02370837]
[1769440985454,0.03,88681.0,88662.0,0.08010196]
[1769440985655,0.03,88681.0,88662.0,0.02370837]
[1769440985870,0.03,88679.0,88662.0,0.02370837]
[1769440986841,0.03,88678.0,88662.0,0.02370837]
[1769440987064,0.00637569,88688.0,88666.0,0.01127828]
[1769440987263,0.17332,88689.0,88669.0,0.02370837]
[1769440987642,0.0360606,88699.0,88669.0,0.02370837]
[1769440987643,0.00637569,88697.0,88669.0,0.02370837]
[1769440987836,0.03,88691.0,88669.0,0.02370837]
[1769440988475,0.00637569,88690.0,88669.0,0.02370837]
[1769440988902,0.00637569,88690.0,88663.0,0.01127866]
[1769440988903,0.03,88691.0,88661.0,0.02370837]
[1769440989144,0.03,88684.0,88661.0,0.02370837]
[1769440990124,0.03,88683.0,88661.0,0.02370837]
[1769440991128,0.001,88684.0,88661.0,0.02370837]
[1769440991311,0.03,88690.0,88661.0,0.02370837]
[1769440991312,0.0134563,88687.0,88661.0,0.02370837]
[1769440991650,0.00637569,88685.0,88661.0,0.02370837]
[1769440991877,0.00637569,88685.0,88653.0,0.01127993]
[1769440991878,0.03,88675.0,88621.0,0.45135578]
[1769440992029,0.03,88660.0,88639.0,0.02366031]
[1769440993096,0.03,88659.0,88639.0,0.02366031]
[1769440993802,0.03,88659.0,88650.0,0.01128031]
[1769440994005,0.31235595,88684.0,88649.0,0.05671208]
[1769440994006,0.2447,88684.0,88660.0,0.01127904]
[1769440994216,0.04516,88686.0,88660.0,0.01127904]
[1769440994217,0.03,88683.0,88663.0,0.66022957]
[1769440994679,0.03,88683.0,88663.0,0.02366031]
[1769440995252,0.03,88682.0,88663.0,0.02366031]
[1769440995457,0.03,88680.0,88663.0,0.02366031]
[1769440997165,0.01127281,88709.0,88676.0,0.011277]
[1769440997366,0.28566551,88708.0,88673.0,0.66022957]
[1769440997703,0.28566551,88708.0,88670.0,0.5113064]
[1769440997704,0.17336,88708.0,88684.0,0.02366031]
[1769440998248,0.0227883,88703.0,88677.0,0.17336]
[1769440998448,0.02348285,88701.0,88678.0,0.01127675]
[1769440998629,0.17336,88708.0,88680.0,0.68349546]
[1769440998836,0.17336,88708.0,88680.0,0.69477195]
[1769440999034,0.17336,88708.0,88681.0,0.08906853]
[1769440999651,0.17336,88708.0,88679.0,0.02478164]
[1769440999652,0.0352819,88707.0,88679.0,0.02478164]
[1769440999852,0.0226574,88706.0,88679.0,0.02478164]
[1769441000295,0.0226574,88705.0,88679.0,0.02478164]
[1769441000671,0.01127433,88697.0,88662.0,0.01127878]
[1769441000874,0.0126245,88691.0,88663.0,0.19810164]
[1769441001079,0.0352819,88691.0,88669.0,0.01127789]
[1769441001281,0.0352819,88691.0,88666.0,0.68349546]
[1769441001486,0.0352819,88691.0,88667.0,0.01127815]
[1769441001683,0.0352819,88691.0,88666.0,0.68349546]
[1769441001886,0.0352819,88691.0,88669.0,0.05638894]
[1769441002170,0.0352819,88691.0,88670.0,0.01127777]
[1769441002371,0.0352819,88691.0,88668.0,0.01127802]
[1769441004143,0.0226574,88691.0,88671.0,0.01127764]
[1769441004334,0.0226574,88691.0,88670.0,0.01127777]
[1769441004684,0.0226574,88691.0,88669.0,0.0676669]
[1769441004685,0.0226574,88691.0,88669.0,0.01127789]
[1769441004881,0.0003105,88714.0,88670.0,0.51126379]
[1769441005083,0.0003105,88714.0,88663.0,0.17332]
[1769441005084,0.0003105,88714.0,88688.0,0.01127548]
[1769441005300,0.0003105,88714.0,88689.0,0.69477081]
[1769441005502,0.0003105,88714.0,88689.0,0.68349546]
[1769441005912,0.001,88707.0,88689.0,0.68349546]
[1769441006579,0.0003105,88714.0,88689.0,0.68349546]
[1769441006791,0.0003105,88714.0,88690.0,0.01127522]
[1769441006999,0.0003105,88714.0,88692.0,0.68349546]
[1769441007209,0.0003105,88714.0,88701.0,0.01127383]
[1769441007414,0.0003105,88714.0,88705.0,0.01127332]
[1769441007620,0.03,88720.0,88705.0,0.01127332]
[1769441007824,0.03,88720.0,88704.0,0.68349546]
[1769441007968,0.03,88720.0,88704.0,0.79509824]
[1769441008173,0.03,88719.0,88701.0,0.17332]
[1769441008376,0.03,88719.0,88691.0,0.0112751]
[1769441008377,0.03,88715.0,88691.0,0.0112751]
[1769441008576,0.03,88715.0,88693.0,0.01127484]
[1769441008939,0.03,88715.0,88692.0,0.17332]
[1769441009160,0.03,88713.0,88692.0,0.17332]
[1769441009499,0.0526574,88713.0,88692.0,0.17332]
[1769441009691,0.0526574,88713.0,88693.0,0.17332]
[1769441009896,0.0526574,88713.0,88686.0,0.69477119]
[1769441009897,0.03,88709.0,88686.0,0.68349546]
[1769441010054,0.0526574,88705.0,88680.0,0.17332]
[1769441010413,0.0526574,88701.0,88680.0,0.17332]
[1769441010614,0.0526574,88701.0,88671.0,0.72861546]
[1769441010615,0.03,88691.0,88671.0,0.04512]
[1769441011215,0.0526574,88691.0,88671.0,0.04512]
[1769441013042,0.03,88690.0,88671.0,0.04512]
[1769441013298,0.0526574,88690.0,88671.0,0.04512]